[Event "XVI Ugra Cup 2020"]
[Site "Khanty-Mansiysk"]
[Date "2020.12.02"]
[Round "3.2"]
[White "Obgolts, Erik"]
[Black "Bocharov, Ivan"]
[Result "1/2-1/2"]
[ECO "B13"]
[WhiteElo "2371"]
[BlackElo "2559"]
[Annotator "ChessBase"]
[PlyCount "64"]
[EventDate "2020.11.30"]
[EventType "swiss"]
[EventCountry "RUS"]
[SourceTitle "playchess.com"]
[Source "ChessBase"]
[SourceQuality "1"]
[TimeControl "5400+30"]

1. e4 {[%emt 0:00:00]} c6 {[%emt 0:00:00]} 2. d4 {[%emt 0:00:00]} d5 {[%emt 0:00:00]} 3. exd5 {[%emt 0:00:00]} cxd5 {[%emt 0:00:00]} 4. Bd3 {[%emt 0:00:00]} Nc6 {[%emt 0:00:00]} 5. c3 {[%emt 0:00:00]} Nf6 {[%emt 0:00:00]} 6. Bf4 {[%emt 0:00:39]} Bg4 {[%emt 0:00:15]} 7. Qb3 {[%emt 0:00:04]} e5 {[%emt 0:00:09]} 8. Bxe5 {[%emt 0:12:31]} Qe7 {[%emt 0:00:15]} 9. Nd2 {[%emt 0:31:29]} Nxe5 {[%emt 0:01:03]} 10. dxe5 {[%emt 0:00:05]} Qxe5+ {[%emt 0:00:06]} 11. Kf1 {[%emt 0:00:37]} O-O-O {[%emt 0:01:04]} 12. h3 {[%emt 0:14:42]} Bf5 {[%emt 0:02:58]} 13. Qc2 {[%emt 0:01:24]} Bxd3+ {[%emt 0:01:57]} 14. Qxd3 {[%emt 0:00:03]} Bc5 {[%emt 0:01:09]} 15. Ngf3 {[%emt 0:00:34]} Qc7 {[%emt 0:01:16]} 16. Nb3 {[%emt 0:02:26]} Bb6 {[%emt 0:06:06]} 17. Nbd4 {[%emt 0:02:10]} Ne4 {[%emt 0:01:27]} 18. g3 {[%emt 0:03:03]} Kb8 {[%emt 0:07:32]} 19. Kg2 {[%emt 0:00:33]} h5 {[%emt 0:06:14]} 20. h4 {[%emt 0:06:46]} f5 {[%emt 0:09:02]} 21. Ng5 {[%emt 0:01:36]} Rc8 {[%emt 0:03:14]} 22. Rad1 {[%emt 0:03:28]} Rhe8 {[%emt 0:11:09]} 23. Qf3 {[%emt 0:01:20]} g6 {[%emt 0:03:22]} 24. Qf4 {[%emt 0:04:33]} Qxf4 {[%emt 0:03:35]} 25. gxf4 {[%emt 0:00:06]} Nc5 {[%emt 0:03:48]} 26. Rd2 {[%emt 0:05:01]} Re7 {[%emt 0:05:40]} 27. Rhd1 {[%emt 0:02:43]} Bc7 {[%emt 0:03:11]} 28. Kf3 {[%emt 0:01:14]} Ne4 {[%emt 0:01:25]} 29. Re2 {[%emt 0:00:58]} Rce8 {[%emt 0:00:12]} 30. Re3 {[%emt 0:01:02]} a6 {[%emt 0:01:36]} 31. Nh3 {[%emt 0:01:52]} Bb6 {[%emt 0:02:54]} 32. Kg2 {[%emt 0:00:52]} Kc7 {[%emt 0:02:53]} 1/2-1/2

[Event "XVI Ugra Cup 2020"]
[Site "Khanty-Mansiysk"]
[Date "2020.12.02"]
[Round "3.3"]
[White "Vetokhin, Savva"]
[Black "Savchenko, Boris"]
[Result "0-1"]
[ECO "B03"]
[WhiteElo "2317"]
[BlackElo "2551"]
[Annotator "ChessBase"]
[PlyCount "60"]
[EventDate "2020.11.30"]
[EventType "swiss"]
[EventCountry "RUS"]
[SourceTitle "playchess.com"]
[Source "ChessBase"]
[SourceQuality "1"]
[TimeControl "5400+30"]

1. e4 Nf6 {[%emt 0:22:16]} 2. e5 {[%emt 0:00:00]} Nd5 {[%emt 0:00:07]} 3. d4 {[%emt 0:00:01]} d6 {[%emt 0:00:06]} 4. c4 Nb6 {[%emt 0:00:04]} 5. exd6 {[%emt 0:00:39]} cxd6 {[%emt 0:00:10]} 6. Nc3 {[%emt 0:00:22]} g6 {[%emt 0:00:14]} 7. Be3 Bg7 {[%emt 0:00:08]} 8. Rc1 {[%emt 0:01:03]} O-O {[%emt 0:05:36]} 9. h3 d5 10. c5 {[%emt 0:04:18]} Nc4 {[%emt 0:05:12]} 11. Bxc4 {[%emt 0:02:18]} dxc4 {[%emt 0:00:07]} 12. Nge2 {[%emt 0:03:06]} Bf5 {[%emt 0:08:16]} 13. O-O {[%emt 0:01:33]} Nc6 {[%emt 0:17:05]} 14. b3 {[%emt 0:03:45]} Bd3 {[%emt 0:33:13]} 15. bxc4 {[%emt 0:01:15]} Bxc4 {[%emt 0:00:15]} 16. Qa4 {[%emt 0:01:45]} Ba6 {[%emt 0:04:02]} 17. Rfd1 {[%emt 0:04:09]} e6 {[%emt 0:00:44]} 18. Ng3 {[%emt 0:02:47]} Qh4 {[%emt 0:05:03]} 19. Nce4 {[%emt 0:03:24]} h6 {[%emt 0:00:41]} 20. Qb3 {[%emt 0:24:08]} Rad8 {[%emt 0:00:51]} 21. Nd6 {[%emt 0:01:22]} Nxd4 {[%emt 0:05:47]} 22. Bxd4 {[%emt 0:02:37]} Bxd4 {[%emt 0:00:08]} 23. Nxb7 {[%emt 0:05:31]} Bxf2+ {[%emt 0:04:09]} 24. Kxf2 {[%emt 0:00:10]} Qf4+ {[%emt 0:00:09]} 25. Kg1 {[%emt 0:02:02]} Bxb7 {[%emt 0:00:12]} 26. Qxb7 {[%emt 0:00:26]} Qxg3 {[%emt 0:00:30]} 27. c6 {[%emt 0:05:54]} Rb8 {[%emt 0:00:57]} 28. Qa6 {[%emt 0:00:10]} Rfc8 {[%emt 0:02:57]} 29. Qf1 {[%emt 0:02:51]} Rb2 {[%emt 0:01:35]} 30. Qf3 {[%emt 0:07:36]} Qg5 {[%emt 0:00:59]} 0-1

[Event "XVI Ugra Cup 2020"]
[Site "Khanty-Mansiysk"]
[Date "2020.12.02"]
[Round "3.4"]
[White "Iljiushenok, Ilia"]
[Black "Tunik, Sergey"]
[Result "1/2-1/2"]
[ECO "B01"]
[WhiteElo "2539"]
[BlackElo "2128"]
[Annotator "ChessBase"]
[PlyCount "63"]
[EventDate "2020.11.30"]
[EventType "swiss"]
[EventCountry "RUS"]
[SourceTitle "playchess.com"]
[Source "ChessBase"]
[SourceQuality "1"]
[TimeControl "5400+30"]

1. e4 {[%emt 0:00:00]} d5 {[%emt 0:00:00]} 2. exd5 {[%emt 0:00:00]} Qxd5 {[%emt 0:00:00]} 3. Nc3 {[%emt 0:00:00]} Qa5 {[%emt 0:00:00]} 4. d4 {[%emt 0:01:09]} Nf6 {[%emt 0:00:00]} 5. Nf3 {[%emt 0:03:25]} c6 {[%emt 0:00:07]} 6. Bc4 {[%emt 0:01:43]} Bf5 {[%emt 0:00:15]} 7. Bd2 {[%emt 0:02:33]} e6 {[%emt 0:00:13]} 8. Nd5 Qd8 {[%emt 0:00:07]} 9. Nxf6+ {[%emt 0:00:36]} gxf6 {[%emt 0:06:58]} 10. O-O {[%emt 0:19:38]} Nd7 {[%emt 0:13:55]} 11. Bf4 Nb6 {[%emt 0:00:30]} 12. Bb3 {[%emt 0:02:26]} Bd6 {[%emt 0:07:57]} 13. Bg3 {[%emt 0:06:25]} Bg4 {[%emt 0:05:53]} 14. Re1 {[%emt 0:11:30]} Bxg3 {[%emt 0:04:26]} 15. hxg3 {[%emt 0:03:59]} Qe7 {[%emt 0:06:23]} 16. a4 Rd8 {[%emt 0:00:23]} 17. a5 {[%emt 0:02:47]} Nd5 18. Qd3 {[%emt 0:03:21]} Bxf3 {[%emt 0:05:30]} 19. Qxf3 {[%emt 0:00:44]} Nc7 {[%emt 0:07:11]} 20. Rad1 {[%emt 0:09:00]} Rg8 21. Re4 Rg5 {[%emt 0:10:30]} 22. Rf4 {[%emt 0:01:05]} f5 {[%emt 0:02:37]} 23. Rh4 {[%emt 0:00:32]} Rg7 {[%emt 0:01:39]} 24. c3 {[%emt 0:02:15]} Kf8 {[%emt 0:03:43]} 25. Re1 {[%emt 0:01:03]} Kg8 {[%emt 0:01:28]} 26. Re5 {[%emt 0:05:44]} Qg5 {[%emt 0:03:29]} 27. Rf4 Nd5 {[%emt 0:05:29]} 28. Bxd5 {[%emt 0:02:06]} Rxd5 {[%emt 0:03:00]} 29. Rxd5 {[%emt 0:03:32]} cxd5 {[%emt 0:00:08]} 30. c4 {[%emt 0:00:06]} Qd8 {[%emt 0:01:19]} 31. cxd5 {[%emt 0:04:50]} Qxa5 {[%emt 0:00:26]} 32. dxe6 {[%emt 0:01:07]} 1/2-1/2

[Event "XVI Ugra Cup 2020"]
[Site "Khanty-Mansiysk"]
[Date "2020.12.02"]
[Round "3.9"]
[White "Tsydypov, Zhamsaran"]
[Black "Pingin, Artem"]
[Result "1/2-1/2"]
[ECO "E16"]
[WhiteElo "2558"]
[BlackElo "2244"]
[Annotator "ChessBase"]
[PlyCount "68"]
[EventDate "2020.11.30"]
[EventType "swiss"]
[EventCountry "RUS"]
[SourceTitle "playchess.com"]
[Source "ChessBase"]
[SourceQuality "1"]
[TimeControl "5400+30"]

1. d4 Nf6 {[%emt 0:00:00]} 2. c4 {[%emt 0:00:41]} e6 3. Nf3 {[%emt 0:00:09]} b6 {[%emt 0:00:04]} 4. g3 {[%emt 0:00:14]} Bb7 {[%emt 0:00:00]} 5. Bg2 {[%emt 0:00:12]} Bb4+ {[%emt 0:01:25]} 6. Nbd2 {[%emt 0:01:32]} a5 {[%emt 0:02:02]} 7. O-O {[%emt 0:03:22]} O-O {[%emt 0:01:30]} 8. Nb1 {[%emt 0:03:30]} Be7 {[%emt 0:02:19]} 9. d5 {[%emt 0:00:08]} exd5 {[%emt 0:01:43]} 10. Nh4 {[%emt 0:01:07]} c6 11. cxd5 {[%emt 0:00:05]} Nxd5 {[%emt 0:01:51]} 12. Nf5 {[%emt 0:04:47]} Nc7 {[%emt 0:13:52]} 13. Qd4 {[%emt 0:00:46]} Bf6 14. Qxb6 {[%emt 0:00:45]} Ba6 {[%emt 0:01:59]} 15. Nc3 {[%emt 0:05:21]} d5 {[%emt 0:18:32]} 16. Rd1 {[%emt 0:00:20]} Ne6 {[%emt 0:05:40]} 17. Qe3 {[%emt 0:08:36]} Qc7 {[%emt 0:01:51]} 18. Qd2 {[%emt 0:01:43]} Rd8 19. e3 {[%emt 0:02:57]} Nd7 {[%emt 0:03:32]} 20. Qc2 {[%emt 0:01:31]} Rab8 {[%emt 0:08:47]} 21. b3 {[%emt 0:02:42]} a4 {[%emt 0:01:42]} 22. Ba3 {[%emt 0:00:49]} axb3 {[%emt 0:05:49]} 23. axb3 Qb6 24. Be7 {[%emt 0:11:06]} Re8 {[%emt 0:06:27]} 25. Bxf6 {[%emt 0:04:12]} Nxf6 {[%emt 0:00:06]} 26. b4 g6 {[%emt 0:04:19]} 27. Nd4 {[%emt 0:02:20]} Bc4 {[%emt 0:05:06]} 28. Rab1 {[%emt 0:09:22]} Qc7 29. b5 Nxd4 {[%emt 0:04:31]} 30. Rxd4 {[%emt 0:01:04]} Qa5 {[%emt 0:02:11]} 31. Rf4 {[%emt 0:09:23]} Nh5 {[%emt 0:02:53]} 32. Rxc4 {[%emt 0:09:44]} dxc4 33. Bxc6 {[%emt 0:00:04]} Red8 {[%emt 0:02:45]} 34. Nd5 {[%emt 0:00:56]} c3 {[%emt 0:03:54]} 1/2-1/2

[Event "XVI Ugra Cup 2020"]
[Site "Khanty-Mansiysk"]
[Date "2020.12.03"]
[Round "4.1"]
[White "Bocharov, Dmitry"]
[Black "Sarana, Alexey"]
[Result "0-1"]
[ECO "D41"]
[WhiteElo "2528"]
[BlackElo "2636"]
[Annotator "ChessBase"]
[PlyCount "128"]
[EventDate "2020.11.30"]
[EventType "swiss"]
[EventCountry "RUS"]
[SourceTitle "playchess.com"]
[Source "ChessBase"]
[SourceQuality "1"]
[TimeControl "5400+30"]

1. d4 {[%emt 0:05:31]} Nf6 {[%emt 0:00:19]} 2. c4 {[%emt 0:00:09]} e6 {[%emt 0:00:04]} 3. Nf3 {[%emt 0:00:38]} d5 {[%emt 0:00:05]} 4. Nc3 {[%emt 0:00:20]} c5 {[%emt 0:01:52]} 5. cxd5 {[%emt 0:00:42]} Nxd5 {[%emt 0:00:04]} 6. g3 {[%emt 0:01:24]} cxd4 {[%emt 0:03:28]} 7. Nxd5 {[%emt 0:02:00]} Qxd5 {[%emt 0:00:04]} 8. Qxd4 {[%emt 0:00:21]} Qb5 {[%emt 0:00:05]} 9. a4 {[%emt 0:11:35]} Qb4+ {[%emt 0:01:22]} 10. Bd2 {[%emt 0:02:54]} Nc6 {[%emt 0:00:13]} 11. Qxb4 {[%emt 0:03:58]} Nxb4 {[%emt 0:04:37]} 12. Rc1 {[%emt 0:00:36]} Bd7 {[%emt 0:00:13]} 13. a5 {[%emt 0:05:43]} Bc6 {[%emt 0:28:48]} 14. Bg2 {[%emt 0:01:21]} Bd6 {[%emt 0:00:10]} 15. O-O {[%emt 0:07:08]} Ke7 {[%emt 0:01:25]} 16. Rc4 {[%emt 0:11:56]} Na6 {[%emt 0:00:37]} 17. Rfc1 {[%emt 0:02:44]} Rhd8 {[%emt 0:14:45]} 18. Nd4 {[%emt 0:08:51]} Bxg2 {[%emt 0:00:57]} 19. Kxg2 {[%emt 0:00:18]} Be5 {[%emt 0:05:14]} 20. Nf3 {[%emt 0:02:42]} Bd6 {[%emt 0:05:23]} 21. b4 {[%emt 0:09:19]} Rd7 {[%emt 0:01:43]} 22. b5 {[%emt 0:07:56]} Nc7 {[%emt 0:00:15]} 23. Nd4 {[%emt 0:00:59]} g6 {[%emt 0:06:54]} 24. Bb4 {[%emt 0:04:09]} Bxb4 {[%emt 0:00:08]} 25. Rxb4 {[%emt 0:00:06]} e5 {[%emt 0:01:21]} 26. Rbc4 {[%emt 0:05:01]} Ne8 {[%emt 0:03:06]} 27. Nb3 {[%emt 0:02:00]} Nd6 {[%emt 0:00:04]} 28. Rb4 {[%emt 0:00:41]} b6 {[%emt 0:00:43]} 29. axb6 {[%emt 0:00:08]} axb6 {[%emt 0:00:02]} 30. Rc6 {[%emt 0:00:06]} Rb7 {[%emt 0:00:09]} 31. Nd2 {[%emt 0:01:48]} Ra2 {[%emt 0:00:16]} 32. Ne4 {[%emt 0:00:52]} Nxe4 {[%emt 0:07:13]} 33. Rxe4 {[%emt 0:00:07]} f6 {[%emt 0:00:02]} 34. f4 {[%emt 0:00:21]} Rb2 {[%emt 0:00:16]} 35. fxe5 {[%emt 0:00:14]} f5 {[%emt 0:00:02]} 36. Rh4 {[%emt 0:02:23]} Kf8 {[%emt 0:00:02]} 37. Kf3 {[%emt 0:00:43]} Rxb5 {[%emt 0:00:28]} 38. e6 {[%emt 0:00:19]} Re5 {[%emt 0:02:46]} 39. Rd4 {[%emt 0:00:45]} Rc5 {[%emt 0:04:52]} 40. Rxc5 {[%emt 0:00:33]} bxc5 {[%emt 0:00:02]} 41. Rd8+ {[%emt 0:00:02]} Ke7 {[%emt 0:00:12]} 42. Rc8 {[%emt 0:00:07]} Kd6 {[%emt 0:00:11]} 43. Kf4 {[%emt 0:01:06]} Re7 {[%emt 0:00:06]} 44. e4 {[%emt 0:00:24]} fxe4 {[%emt 0:00:30]} 45. Kxe4 {[%emt 0:00:01]} Rxe6+ {[%emt 0:00:07]} 46. Kd3 {[%emt 0:00:04]} Kd5 {[%emt 0:00:55]} 47. Rd8+ {[%emt 0:00:15]} Rd6 {[%emt 0:00:03]} 48. Re8 {[%emt 0:01:31]} Rd7 {[%emt 0:02:39]} 49. Rf8 {[%emt 0:00:19]} Ke5+ {[%emt 0:01:40]} 50. Ke3 {[%emt 0:00:56]} Ra7 {[%emt 0:00:05]} 51. Kd3 {[%emt 0:00:24]} Ra2 {[%emt 0:01:25]} 52. Rc8 {[%emt 0:00:41]} Kd5 {[%emt 0:00:05]} 53. Rd8+ {[%emt 0:00:15]} Ke6 {[%emt 0:00:06]} 54. h4 {[%emt 0:01:01]} Ra3+ {[%emt 0:00:07]} 55. Kc4 {[%emt 0:00:06]} Rxg3 {[%emt 0:00:05]} 56. Kxc5 {[%emt 0:00:25]} Rg4 {[%emt 0:03:19]} 57. Rd6+ {[%emt 0:00:18]} Ke7 {[%emt 0:00:48]} 58. Rd4 {[%emt 0:01:12]} Rxd4 {[%emt 0:00:05]} 59. Kxd4 {[%emt 0:00:01]} Ke6 {[%emt 0:00:06]} 60. Ke4 {[%emt 0:00:06]} h6 {[%emt 0:00:09]} 61. Kf4 {[%emt 0:00:16]} Kd5 {[%emt 0:00:05]} 62. Kf3 {[%emt 0:01:37]} Ke5 {[%emt 0:00:05]} 63. Ke3 {[%emt 0:00:06]} Kf5 {[%emt 0:00:04]} 64. Kf3 {[%emt 0:00:05]} h5 {[%emt 0:00:06]} 0-1

[Event "XVI Ugra Cup 2020"]
[Site "Khanty-Mansiysk"]
[Date "2020.12.03"]
[Round "4.2"]
[White "Savchenko, Boris"]
[Black "Matinian, Nikita"]
[Result "1/2-1/2"]
[ECO "A48"]
[WhiteElo "2551"]
[BlackElo "2470"]
[Annotator "ChessBase"]
[PlyCount "110"]
[EventDate "2020.11.30"]
[EventType "swiss"]
[EventCountry "RUS"]
[SourceTitle "playchess.com"]
[Source "ChessBase"]
[SourceQuality "1"]
[TimeControl "5400+30"]

1. d4 {[%emt 0:08:24]} Nf6 {[%emt 0:00:00]} 2. Nf3 {[%emt 0:01:21]} g6 {[%emt 0:00:00]} 3. b4 {[%emt 0:00:21]} Bg7 {[%emt 0:01:15]} 4. e3 {[%emt 0:12:58]} d5 {[%emt 0:04:17]} 5. Bb2 {[%emt 0:17:42]} Bf5 {[%emt 0:17:20]} 6. c4 {[%emt 0:04:03]} c6 {[%emt 0:05:44]} 7. a4 {[%emt 0:10:51]} O-O {[%emt 0:02:02]} 8. Na3 {[%emt 0:04:30]} Ne4 {[%emt 0:09:52]} 9. Qb3 {[%emt 0:00:42]} e6 {[%emt 0:00:50]} 10. Be2 {[%emt 0:03:10]} Nd7 {[%emt 0:06:07]} 11. Rd1 {[%emt 0:01:11]} g5 {[%emt 0:05:08]} 12. Nb1 {[%emt 0:00:36]} dxc4 {[%emt 0:06:16]} 13. Qxc4 {[%emt 0:11:22]} Nb6 {[%emt 0:00:43]} 14. Qb3 {[%emt 0:04:45]} Qd5 {[%emt 0:03:29]} 15. Qa3 {[%emt 0:00:09]} a5 {[%emt 0:04:15]} 16. b5 {[%emt 0:00:51]} Nc4 {[%emt 0:16:30]} 17. Bxc4 {[%emt 0:00:33]} Qxc4 {[%emt 0:01:33]} 18. Nbd2 {[%emt 0:07:56]} Qb4 {[%emt 0:00:48]} 19. bxc6 {[%emt 0:01:21]} bxc6 {[%emt 0:00:17]} 20. Qxb4 {[%emt 0:00:27]} axb4 {[%emt 0:00:06]} 21. Nxe4 {[%emt 0:00:12]} Bxe4 {[%emt 0:00:04]} 22. Nxg5 {[%emt 0:00:15]} Bc2 {[%emt 0:00:12]} 23. Ra1 {[%emt 0:01:00]} c5 {[%emt 0:00:44]} 24. Kd2 {[%emt 0:04:12]} Bxa4 {[%emt 0:00:32]} 25. Rhc1 {[%emt 0:00:25]} cxd4 {[%emt 0:01:43]} 26. exd4 {[%emt 0:00:54]} Bb3 {[%emt 0:02:26]} 27. Kd3 {[%emt 0:01:17]} Bd5 {[%emt 0:03:40]} 28. Ne4 {[%emt 0:00:27]} b3 {[%emt 0:00:53]} 29. Rxa8 {[%emt 0:00:26]} Rxa8 {[%emt 0:00:07]} 30. f3 {[%emt 0:00:35]} h6 {[%emt 0:02:01]} 31. Rb1 {[%emt 0:00:48]} Kh7 {[%emt 0:01:52]} 32. Bc1 {[%emt 0:01:24]} Ra2 {[%emt 0:01:01]} 33. Bb2 {[%emt 0:00:12]} Ra7 {[%emt 0:01:59]} 34. Bc1 {[%emt 0:00:18]} Ra4 {[%emt 0:00:44]} 35. Bb2 {[%emt 0:01:19]} Kg6 {[%emt 0:00:31]} 36. Nc5 {[%emt 0:00:25]} Ra2 {[%emt 0:00:39]} 37. Kc3 {[%emt 0:00:26]} Ra7 {[%emt 0:01:07]} 38. Bc1 {[%emt 0:00:37]} Rc7 {[%emt 0:01:10]} 39. Kd3 {[%emt 0:00:20]} Rc8 {[%emt 0:00:17]} 40. Bd2 {[%emt 0:00:28]} Rb8 {[%emt 0:00:24]} 41. Nd7 {[%emt 0:00:37]} Rb5 {[%emt 0:00:39]} 42. Kc3 {[%emt 0:00:33]} h5 {[%emt 0:00:44]} 43. Kd3 {[%emt 0:00:23]} Kf5 {[%emt 0:00:30]} 44. Nc5 {[%emt 0:00:12]} Rb8 {[%emt 0:00:45]} 45. Ne4 {[%emt 0:00:19]} e5 {[%emt 0:00:39]} 46. Nc3 {[%emt 0:00:35]} Bb7 {[%emt 0:00:17]} 47. Rxb3 {[%emt 0:01:03]} Ba6+ {[%emt 0:00:24]} 48. Kc2 {[%emt 0:00:07]} Bd3+ {[%emt 0:00:25]} 49. Kb2 {[%emt 0:00:43]} Rxb3+ {[%emt 0:00:04]} 50. Kxb3 {[%emt 0:00:07]} exd4 {[%emt 0:00:03]} 51. Nd5 {[%emt 0:00:32]} Bf1 {[%emt 0:01:04]} 52. Nf4 {[%emt 0:00:14]} h4 {[%emt 0:01:10]} 53. Kc2 {[%emt 0:00:14]} Be5 {[%emt 0:00:15]} 54. g3 {[%emt 0:00:15]} h3 {[%emt 0:00:42]} 55. Kd1 {[%emt 0:00:28]} Bxf4 {[%emt 0:00:31]} 1/2-1/2

[Event "XVI Ugra Cup 2020"]
[Site "Khanty-Mansiysk"]
[Date "2020.12.03"]
[Round "4.3"]
[White "Tunik, Sergey"]
[Black "Zvjaginsev, Vadim"]
[Result "0-1"]
[ECO "B43"]
[WhiteElo "2128"]
[BlackElo "2602"]
[Annotator "ChessBase"]
[PlyCount "110"]
[EventDate "2020.11.30"]
[EventType "swiss"]
[EventCountry "RUS"]
[SourceTitle "playchess.com"]
[Source "ChessBase"]
[SourceQuality "1"]
[TimeControl "5400+30"]

1. e4 {[%emt 0:00:00]} c5 {[%emt 0:00:47]} 2. Nc3 {[%emt 0:00:00]} e6 {[%emt 0:01:34]} 3. Nf3 {[%emt 0:04:02]} a6 {[%emt 0:00:59]} 4. d4 {[%emt 0:00:28]} cxd4 {[%emt 0:00:17]} 5. Nxd4 {[%emt 0:00:07]} d6 {[%emt 0:03:30]} 6. Be3 {[%emt 0:02:28]} b5 {[%emt 0:00:16]} 7. Nb3 {[%emt 0:06:18]} Nf6 {[%emt 0:03:24]} 8. f3 {[%emt 0:00:30]} Bb7 {[%emt 0:03:07]} 9. Qd2 {[%emt 0:03:58]} Nbd7 {[%emt 0:01:08]} 10. O-O-O {[%emt 0:00:47]} Rc8 {[%emt 0:01:47]} 11. Bd3 {[%emt 0:15:07]} Be7 {[%emt 0:03:13]} 12. Kb1 {[%emt 0:00:42]} O-O {[%emt 0:00:32]} 13. g4 {[%emt 0:05:49]} Ne5 {[%emt 0:03:06]} 14. Qf2 {[%emt 0:02:29]} Nfd7 {[%emt 0:02:21]} 15. Rhg1 {[%emt 0:04:00]} b4 {[%emt 0:05:00]} 16. Ne2 {[%emt 0:06:14]} d5 {[%emt 0:06:42]} 17. exd5 {[%emt 0:06:20]} Nxd3 {[%emt 0:01:07]} 18. Rxd3 {[%emt 0:00:15]} Bxd5 {[%emt 0:02:52]} 19. Nf4 {[%emt 0:09:29]} Bc4 {[%emt 0:00:41]} 20. Rd2 {[%emt 0:00:17]} Qc7 {[%emt 0:01:03]} 21. Nd4 {[%emt 0:05:15]} a5 {[%emt 0:09:40]} 22. b3 {[%emt 0:09:39]} Ba6 {[%emt 0:00:07]} 23. Nf5 {[%emt 0:05:23]} Ne5 {[%emt 0:04:05]} 24. Nxe7+ {[%emt 0:02:28]} Qxe7 {[%emt 0:01:31]} 25. Bd4 {[%emt 0:00:12]} Ng6 {[%emt 0:02:28]} 26. Nh5 {[%emt 0:02:14]} e5 {[%emt 0:00:38]} 27. Bb2 {[%emt 0:00:11]} Qc5 {[%emt 0:02:16]} 28. Re1 {[%emt 0:03:11]} Qxf2 {[%emt 0:01:03]} 29. Rxf2 {[%emt 0:00:05]} f5 {[%emt 0:04:41]} 30. gxf5 {[%emt 0:02:29]} Rxf5 {[%emt 0:00:12]} 31. Ng3 {[%emt 0:00:06]} Rff8 {[%emt 0:00:49]} 32. Re3 {[%emt 0:03:02]} Rc5 {[%emt 0:02:52]} 33. a3 {[%emt 0:01:00]} Rd5 {[%emt 0:01:04]} 34. c4 {[%emt 0:01:01]} bxc3 {[%emt 0:00:52]} 35. Bxc3 {[%emt 0:00:06]} Rc8 {[%emt 0:04:47]} 36. Kb2 {[%emt 0:00:21]} Nf4 {[%emt 0:00:21]} 37. Ne4 {[%emt 0:01:24]} Nd3+ {[%emt 0:03:43]} 38. Rxd3 {[%emt 0:00:05]} Bxd3 {[%emt 0:00:04]} 39. b4 {[%emt 0:00:08]} axb4 {[%emt 0:01:24]} 40. axb4 {[%emt 0:00:05]} Rf8 {[%emt 0:01:22]} 41. Nc5 {[%emt 0:00:34]} Bc4 {[%emt 0:00:56]} 42. Kc2 {[%emt 0:00:53]} g6 {[%emt 0:00:37]} 43. Bd2 {[%emt 0:00:48]} Ra8 {[%emt 0:02:02]} 44. f4 {[%emt 0:01:16]} Rf8 {[%emt 0:04:10]} 45. Kc3 {[%emt 0:00:31]} Bb5 {[%emt 0:00:15]} 46. Ne6 {[%emt 0:00:18]} Rf6 {[%emt 0:00:55]} 47. f5 {[%emt 0:00:09]} Rxf5 {[%emt 0:00:21]} 48. Rxf5 {[%emt 0:00:21]} gxf5 {[%emt 0:00:07]} 49. Nc7 {[%emt 0:00:07]} Rd3+ {[%emt 0:00:14]} 50. Kc2 {[%emt 0:00:25]} Bc4 {[%emt 0:00:09]} 51. b5 {[%emt 0:00:09]} Rb3 {[%emt 0:00:56]} 52. Bc3 {[%emt 0:00:48]} e4 {[%emt 0:00:11]} 53. Bd4 {[%emt 0:00:46]} e3 {[%emt 0:00:39]} 54. Ne8 {[%emt 0:00:23]} e2 {[%emt 0:00:51]} 55. Bf2 {[%emt 0:00:09]} Rf3 {[%emt 0:00:20]} 0-1

[Event "XVI Ugra Cup 2020"]
[Site "Khanty-Mansiysk"]
[Date "2020.12.03"]
[Round "4.4"]
[White "Bocharov, Ivan"]
[Black "Iljiushenok, Ilia"]
[Result "1-0"]
[ECO "C07"]
[WhiteElo "2559"]
[BlackElo "2539"]
[Annotator "ChessBase"]
[PlyCount "99"]
[EventDate "2020.11.30"]
[EventType "swiss"]
[EventCountry "RUS"]
[SourceTitle "playchess.com"]
[Source "ChessBase"]
[SourceQuality "1"]
[TimeControl "5400+30"]

1. e4 {[%emt 0:00:00]} e6 {[%emt 0:00:00]} 2. d4 {[%emt 0:00:00]} d5 {[%emt 0:00:00]} 3. Nd2 {[%emt 0:00:00]} c5 {[%emt 0:00:00]} 4. exd5 {[%emt 0:00:00]} Qxd5 {[%emt 0:00:00]} 5. Ngf3 {[%emt 0:00:11]} cxd4 {[%emt 0:00:00]} 6. Bc4 {[%emt 0:00:06]} Qd7 {[%emt 0:00:00]} 7. O-O {[%emt 0:00:11]} Nc6 {[%emt 0:00:19]} 8. Nb3 {[%emt 0:00:19]} Nf6 {[%emt 0:00:22]} 9. Qe2 {[%emt 0:00:14]} a6 {[%emt 0:01:18]} 10. a4 {[%emt 0:00:15]} Bd6 {[%emt 0:01:07]} 11. Rd1 {[%emt 0:00:13]} O-O {[%emt 0:00:33]} 12. Nbxd4 {[%emt 0:00:10]} e5 {[%emt 0:00:57]} 13. Nxc6 {[%emt 0:00:35]} Qxc6 {[%emt 0:00:05]} 14. Bg5 {[%emt 0:00:49]} Bc7 {[%emt 0:00:32]} 15. h3 {[%emt 0:01:31]} e4 {[%emt 0:05:52]} 16. Nd2 {[%emt 0:01:34]} Bf5 {[%emt 0:01:34]} 17. Nf1 {[%emt 0:00:57]} h6 {[%emt 0:19:23]} 18. Bh4 {[%emt 0:07:00]} Bg6 {[%emt 0:02:11]} 19. Ne3 {[%emt 0:01:59]} Bh5 {[%emt 0:03:40]} 20. g4 {[%emt 0:01:07]} Bg6 {[%emt 0:00:06]} 21. Nd5 {[%emt 0:09:16]} Nxd5 {[%emt 0:05:25]} 22. Bxd5 {[%emt 0:00:23]} Qe8 {[%emt 0:00:13]} 23. Ra3 {[%emt 0:03:33]} Kh8 {[%emt 0:11:12]} 24. Rc3 {[%emt 0:02:20]} Be5 {[%emt 0:04:23]} 25. Rc4 {[%emt 0:01:15]} f5 {[%emt 0:06:09]} 26. Bxb7 {[%emt 0:01:08]} Rb8 {[%emt 0:00:56]} 27. Bc6 {[%emt 0:01:13]} Qf7 {[%emt 0:07:22]} 28. Bd5 {[%emt 0:00:41]} Qe8 {[%emt 0:02:37]} 29. b3 {[%emt 0:05:43]} Bd6 {[%emt 0:03:54]} 30. Bxe4 {[%emt 0:04:46]} Bf7 {[%emt 0:09:33]} 31. Rc6 {[%emt 0:02:34]} Be7 {[%emt 0:00:14]} 32. Bxe7 {[%emt 0:00:50]} Qxe7 {[%emt 0:00:01]} 33. gxf5 {[%emt 0:01:59]} Rbe8 {[%emt 0:03:52]} 34. f3 {[%emt 0:03:01]} Bh5 {[%emt 0:00:48]} 35. Re6 {[%emt 0:07:47]} Qh4 {[%emt 0:01:58]} 36. Qf2 {[%emt 0:01:56]} Qf4 {[%emt 0:00:07]} 37. Qd2 {[%emt 0:10:34]} Qh4 {[%emt 0:07:15]} 38. Kg2 {[%emt 0:00:10]} Rd8 {[%emt 0:04:05]} 39. Rd6 {[%emt 0:00:02]} Rxd6 {[%emt 0:00:15]} 40. Qxd6 {[%emt 0:00:01]} Re8 {[%emt 0:00:05]} 41. Rd4 {[%emt 0:03:28]} Qe1 {[%emt 0:01:22]} 42. Qg3 {[%emt 0:00:56]} Qe3 {[%emt 0:00:38]} 43. Rd7 {[%emt 0:00:51]} Qc3 {[%emt 0:00:19]} 44. Qh4 {[%emt 0:03:42]} Qe3 {[%emt 0:00:39]} 45. f6 {[%emt 0:01:29]} Qe2+ {[%emt 0:00:29]} 46. Qf2 {[%emt 0:00:22]} Rxe4 {[%emt 0:00:05]} 47. fxg7+ {[%emt 0:00:40]} Kg8 {[%emt 0:00:04]} 48. fxe4 {[%emt 0:00:17]} Qxe4+ {[%emt 0:00:08]} 49. Kg1 {[%emt 0:00:27]} Qg6+ {[%emt 0:00:05]} 50. Kh2 {[%emt 0:00:14]} 1-0